bitfinex/quotes_ETHUSD_20240709
["timestamp","ask_amount","ask_price","bid_price","bid_amount"]
[1720524466543,0.55,3091.3,3090.6,2.4092]
[1720524466742,1.12100405,3091.2,3090.6,2.4092]
[1720524466965,1.12100405,3091.1,3090.6,2.4092]
[1720524467278,1.12100405,3091.3,3090.6,2.4092]
[1720524467454,1.12100405,3091.2,3090.6,2.4092]
[1720524468477,0.40997041,3091.3,3090.6,2.4092]
[1720524468683,2.5334603,3091.2,3090.8,2.813]
[1720524468865,7.69879071,3091.8,3090.9,0.06469931]
[1720524469067,2.53325111,3091.7,3090.8,2.87769768]
[1720524469253,2.53325111,3091.6,3091.2,2.813]
[1720524469458,1.120909,3091.5,3091.2,2.813]
[1720524469660,1.120909,3091.4,3091.2,2.813]
[1720524469860,1.120909,3091.3,3091.2,2.813]
[1720524470850,1.120909,3091.3,3090.7,3.23546]
[1720524470851,1.120909,3091.3,3090.8,5.2335]
[1720524471049,2.3175,3091.8,3090.8,2.813]
[1720524471050,1.12093207,3091.2,3090.8,2.813]
[1720524471252,1.12093207,3091.1,3090.8,2.813]
[1720524471480,1.12093207,3091.0,3090.5,2.4205]
[1720524471648,1.12093207,3091.6,3090.5,5.4205]
[1720524471844,3.13171568,3091.5,3090.5,5.4205]
[1720524472083,2.84664126,3091.4,3090.5,5.4205]
[1720524472286,2.01071139,3091.3,3090.5,5.4205]
[1720524472490,2.53346969,3091.2,3090.5,5.4205]
[1720524472784,1.12100429,3091.1,3090.5,5.4205]
[1720524473087,1.12100429,3091.0,3090.5,5.4205]
[1720524473260,1.12099626,3090.9,3090.5,5.4205]
[1720524473455,0.55,3091.3,3090.5,5.4205]
[1720524473657,2.53345153,3091.2,3090.5,5.4205]
[1720524473863,1.12099625,3091.1,3090.5,5.4205]
[1720524474180,1.16924224,3091.0,3090.4,2.813]
[1720524474388,1.12099625,3090.9,3090.4,2.813]
[1720524475192,0.04824599,3091.4,3090.4,2.813]
[1720524475344,1.12104016,3090.8,3090.4,2.813]
[1720524475545,1.12104016,3090.7,3090.4,2.813]
[1720524475874,0.3057346,3091.3,3090.4,2.813]
[1720524476046,3.08349987,3091.2,3090.4,2.813]
[1720524476247,2.53349987,3091.1,3090.4,2.813]
[1720524476448,2.53349987,3091.0,3090.4,2.813]
[1720524476691,1.12101764,3090.9,3090.4,2.813]
[1720524476983,1.12101764,3091.1,3090.4,2.813]
[1720524477181,2.53350301,3091.0,3090.4,2.813]
[1720524477384,1.12101764,3090.9,3090.4,2.813]
[1720524477684,1.12101764,3090.8,3090.4,2.813]
[1720524477872,1.12101764,3090.7,3090.6,5.70761]
[1720524478072,7.59175,3091.7,3090.6,8.52061]
[1720524478270,3.29249723,3091.6,3090.6,8.52061]
[1720524478474,2.53332223,3091.5,3090.6,8.52061]
[1720524478692,0.23175,3091.7,3090.6,5.285]
[1720524478693,1.41235964,3091.4,3090.6,5.285]
[1720524478991,2.53327999,3091.3,3090.6,5.285]
[1720524479152,2.53347422,3091.2,3090.6,2.813]
[1720524479349,2.53347422,3091.1,3090.6,2.813]
[1720524479574,2.58172021,3091.0,3090.2,2.813]
[1720524479779,2.53347422,3090.9,3090.2,2.813]
[1720524480100,3.13172021,3090.8,3090.2,2.813]
[1720524480275,2.58172021,3090.7,3090.2,2.813]
[1720524480604,2.58172021,3090.6,3090.0,2.472]
[1720524480768,1.12100629,3090.6,3090.0,2.472]
[1720524480964,1.12100629,3090.5,3090.0,2.472]
[1720524481195,1.12118948,3090.4,3089.9,3.0]
[1720524481496,1.12118948,3090.3,3089.9,3.0]
[1720524481695,2.8458,3090.8,3089.9,3.0]
[1720524481696,1.12118948,3090.7,3089.9,3.0]
[1720524481983,3.48067494,3090.6,3089.9,3.0]
[1720524482184,2.53397599,3090.5,3089.9,3.0]
[1720524482386,1.12118948,3090.4,3089.9,3.0]
[1720524482693,1.12118948,3090.3,3089.9,3.0]
[1720524482867,1.12118948,3090.5,3089.9,3.0]
[1720524483062,2.53395429,3090.4,3089.9,3.0]
[1720524483266,1.12118948,3090.3,3089.9,3.0]
[1720524483582,7.36,3091.0,3090.3,2.4565]
[1720524483768,2.5337197,3090.9,3090.6,2.813]
[1720524484089,2.5337197,3090.8,3090.6,2.813]
[1720524484253,2.5337197,3090.7,3090.3,2.4565]
[1720524484591,2.53379618,3090.6,3090.3,2.98345]
[1720524484782,1.12114875,3090.5,3090.3,2.98345]
[1720524484982,1.12114875,3090.4,3090.3,2.98345]
[1720524486368,9.669,3091.7,3090.3,2.98345]
[1720524486369,9.669,3091.7,3090.5,3.23569]
[1720524486572,4.098145,3091.6,3090.8,2.813]
[1720524486888,4.098145,3091.5,3090.8,2.813]
[1720524487089,2.5333405,3091.4,3090.8,2.813]
[1720524487388,4.09820417,3091.3,3090.8,2.813]
[1720524487554,2.5333405,3091.2,3090.8,2.813]
[1720524487751,2.53341468,3091.1,3090.8,2.813]
[1720524487991,2.53349548,3091.0,3090.8,2.813]
[1720524488230,2.53349548,3090.9,3090.8,2.813]
[1720524490231,2.53349548,3090.9,3090.8,3.0943]
[1720524491243,2.53321281,3090.9,3090.8,3.0943]
[1720524492998,2.53321281,3090.9,3090.8,5.5359]
[1720524493640,2.53321281,3090.9,3090.8,12.0067]
[1720524493948,5.37541167,3092.1,3091.0,3.23515]
[1720524493949,3.0,3092.1,3091.0,3.23515]
[1720524494179,4.0976287,3092.0,3091.3,2.813]
[1720524494299,4.0976287,3091.9,3091.3,2.87768971]
[1720524494498,0.53754117,3092.1,3091.3,2.87768971]
[1720524494702,1.12077152,3091.8,3091.3,2.87768971]
[1720524495004,2.53294364,3091.7,3091.3,2.87768971]
[1720524495306,5.37555018,3092.3,3091.4,2.2785]
[1720524495307,2.53294364,3091.6,3091.4,2.2785]
[1720524495526,2.53294364,3091.5,3091.4,2.2785]
[1720524496162,2.53294364,3091.5,3091.3,2.813]
[1720524496368,2.53294364,3091.4,3091.3,2.813]
[1720524497989,2.5329013,3091.4,3090.9,2.813]
[1720524498286,2.5329013,3091.3,3091.0,3.0]
[1720524498472,2.5329013,3091.2,3091.0,3.0]
[1720524498672,2.5329013,3091.1,3091.0,3.0]
[1720524498987,2.5329013,3091.1,3090.5,2.813]
[1720524499154,4.09777551,3091.0,3090.5,2.813]
[1720524499353,2.5329013,3090.9,3090.5,2.813]
[1720524499545,2.5329013,3090.8,3090.5,2.813]
[1720524499844,2.5329013,3090.8,3090.1,5.0915]
[1720524499845,4.09794741,3090.7,3090.1,5.0915]
[1720524500048,4.09794741,3090.6,3090.1,2.813]
[1720524500250,0.25329013,3090.8,3090.1,2.813]
[1720524500251,4.09794741,3090.5,3090.1,2.813]
[1720524500474,2.5329013,3090.4,3090.1,2.813]
[1720524500680,2.5329013,3090.3,3090.1,2.813]
[1720524500849,2.5329013,3090.2,3090.1,2.813]
[1720524501059,2.5329013,3090.2,3089.6,2.813]
[1720524501291,2.53403838,3090.1,3089.6,2.813]
[1720524501488,2.53403838,3090.0,3089.6,2.813]
[1720524501681,2.53403838,3089.9,3089.6,3.0943]
[1720524501989,2.53403838,3089.8,3089.6,2.813]
[1720524502190,0.26078901,3090.7,3089.7,3.0]
[1720524502390,3.08409493,3090.6,3090.0,2.813]
[1720524502688,4.09933063,3090.5,3090.0,2.813]
[1720524502887,0.55,3090.6,3090.0,2.813]
[1720524502888,4.64933063,3090.4,3090.0,2.813]
[1720524503192,1.41281399,3090.3,3090.1,2.33402359]
[1720524503358,1.41281399,3090.2,3090.1,2.84872595]
[1720524503691,7.36,3091.1,3090.1,2.84872595]
[1720524503692,7.36,3091.1,3090.1,5.0823]
[1720524503901,4.09869734,3091.0,3090.2,0.06470931]
[1720524504053,4.09869734,3090.9,3090.2,0.06470931]
[1720524504260,4.09869734,3090.8,3090.2,0.06470931]
[1720524504460,2.53370729,3090.7,3090.2,0.06470931]
[1720524504705,2.53370729,3090.6,3090.3,0.51470093]
[1720524504895,2.53371102,3090.5,3090.3,0.51470093]
[1720524505196,2.37633394,3091.4,3090.3,0.51470093]
[1720524505197,2.53371102,3090.4,3090.3,0.51470093]
[1720524505500,5.427,3091.6,3090.3,0.51470093]
[1720524505501,7.36,3091.2,3090.3,0.51470093]
[1720524505704,2.53349876,3091.1,3090.4,0.06470429]
[1720524506003,2.53349876,3091.0,3090.9,2.813]
[1720524507262,1.41248161,3091.0,3090.9,5.1226]
[1720524507573,2.53341188,3091.0,3090.9,2.813]
[1720524507783,7.36,3091.9,3090.9,3.16928702]
[1720524507977,2.4322,3092.1,3090.9,3.16928702]
[1720524507978,4.09785809,3091.8,3090.9,3.23398293]
[1720524508299,4.09785809,3091.7,3090.9,3.16928702]
[1720524508504,4.09785809,3091.6,3090.9,3.16928702]
[1720524508707,4.09785809,3091.5,3091.0,0.3233983]
[1720524508871,2.53317936,3091.4,3091.0,0.3233983]
[1720524509226,2.53317936,3091.3,3090.9,2.813]
[1720524509404,2.53317936,3091.2,3090.9,2.813]
[1720524509564,2.53317936,3091.1,3090.9,2.813]
[1720524509759,7.77829284,3092.0,3091.0,0.2813]
[1720524509978,7.77829284,3092.0,3090.9,2.813]
[1720524509979,4.64794879,3091.9,3090.9,2.813]
[1720524510299,4.09794879,3091.8,3091.0,0.06469597]
[1720524510510,4.64794879,3091.7,3091.0,0.06469597]
[1720524510807,4.09794879,3091.6,3090.9,2.813]
[1720524511010,2.97706042,3091.5,3091.0,0.2813]
[1720524511306,4.09792488,3091.4,3091.0,0.2813]
[1720524511471,2.53319237,3091.3,3090.9,2.813]
[1720524511677,2.53319237,3091.2,3090.9,2.813]
[1720524511977,2.53319237,3091.1,3090.5,2.813]
[1720524512284,2.53319237,3091.0,3090.5,2.813]
[1720524512487,1.41231079,3090.9,3090.6,3.0]
[1720524512811,1.41236282,3090.8,3090.6,3.0]
[1720524513037,0.59824599,3091.7,3090.6,3.0]
[1720524513211,2.53328233,3091.6,3090.6,3.0]
[1720524513411,2.53328233,3091.5,3090.6,3.0]
[1720524513634,4.09806499,3091.4,3090.6,3.0]
[1720524513833,2.53328233,3091.3,3090.6,3.0]
[1720524513999,2.53328233,3091.2,3090.9,2.813]
[1720524514339,2.53328233,3091.1,3090.9,2.813]
[1720524514549,0.55,3091.7,3090.9,2.813]
[1720524514694,1.12089288,3091.0,3090.9,2.813]
[1720524514895,2.53321791,3091.0,3090.9,3.0943]
[1720524515200,1.41232503,3091.0,3090.9,5.4344]
[1720524515397,0.55,3091.9,3090.9,5.4344]
[1720524515735,1.12083024,3091.8,3091.0,0.06469326]
[1720524515941,1.12083024,3091.7,3091.0,0.06469326]
[1720524516113,1.12083024,3091.6,3091.0,0.06469326]
[1720524516308,1.41224517,3091.5,3091.0,0.06469326]
[1720524516516,2.53307541,3091.4,3091.0,0.06469326]
[1720524516839,7.36,3092.0,3091.0,0.06469326]
[1720524516840,1.41224517,3091.3,3091.2,2.813]
[1720524517050,1.41218909,3091.3,3091.2,2.813]
[1720524517235,1.12078678,3091.3,3091.2,2.813]
[1720524517431,1.41218909,3091.3,3091.2,2.813]
[1720524517608,2.97671682,3091.8,3091.2,2.813]
[1720524517939,7.36,3093.0,3091.8,3.2343]
[1720524518147,1.1203866,3092.8,3092.7,2.813]
[1720524518303,2.53207372,3092.8,3092.7,2.813]
[1720524518716,1.1202461,3092.8,3092.7,2.813]
[1720524518945,0.1146909,3092.9,3092.7,0.2813]
[1720524519140,2.37431862,3094.2,3092.8,2.35095546]
[1720524519341,2.80466387,3094.5,3092.8,2.35095546]
[1720524519342,4.09485841,3094.1,3093.1,3.23291]
[1720524519541,2.53124172,3094.0,3093.6,2.813]
[1720524519754,2.53124172,3093.9,3093.6,2.813]
[1720524519917,2.53124172,3093.8,3093.6,2.813]
[1720524520102,7.36,3094.7,3093.6,2.813]
[1720524520303,2.53099974,3094.6,3094.0,2.813]
[1720524520516,2.53099974,3094.5,3094.0,2.813]
[1720524520722,2.53099974,3094.4,3094.0,2.813]
[1720524520921,0.29463599,3094.8,3094.0,2.813]
[1720524521149,1.41101004,3094.7,3094.0,2.813]
[1720524521309,1.29041384,3094.6,3094.0,2.813]
[1720524521644,0.1705646,3094.6,3094.0,2.813]
[1720524521804,1.61161173,3095.3,3094.0,2.813]
[1720524522006,2.57896739,3095.2,3094.0,2.813]
[1720524522243,2.5307214,3095.1,3094.0,2.813]
[1720524522442,2.57896739,3095.0,3094.0,2.813]
[1720524522641,2.5307214,3094.9,3093.7,3.728]
[1720524522811,2.83690388,3094.8,3093.7,3.728]
[1720524523011,2.57900714,3094.7,3093.2,3.728]
[1720524523354,2.53076115,3094.6,3093.2,3.728]
[1720524523504,3.12900714,3094.5,3093.2,3.728]
[1720524523709,1.1197869,3094.4,3093.2,3.728]
[1720524523910,0.59824599,3094.3,3093.2,3.728]
[1720524524150,0.04824599,3094.2,3093.2,3.728]
[1720524524348,0.55,3094.1,3093.2,3.728]
[1720524524538,0.04824599,3094.0,3093.2,3.728]
[1720524525045,0.33857738,3093.9,3093.2,3.728]
[1720524526245,0.04824599,3093.8,3093.2,3.728]
[1720524526547,0.55,3093.7,3093.2,3.728]
[1720524527047,0.55,3093.8,3093.2,3.728]
[1720524527819,0.04824599,3093.7,3093.2,3.728]
[1720524528016,0.55,3093.8,3093.2,3.728]
[1720524528435,0.55,3093.8,3092.3,7.43]
[1720524528436,0.04824599,3093.7,3092.8,3.728]
[1720524528643,0.8443446,3093.6,3092.8,3.728]
[1720524529814,0.55,3093.6,3092.8,3.728]
[1720524530016,0.33857738,3093.9,3092.8,3.728]
[1720524530017,0.55,3093.8,3092.8,3.728]
[1720524530209,0.04824599,3093.7,3092.8,3.728]
[1720524530520,0.55,3093.6,3092.8,3.728]
[1720524531025,0.33857738,3093.9,3092.9,0.06465735]
[1720524531241,0.33857738,3093.9,3092.8,6.9613]
[1720524531443,0.33857738,3093.9,3092.8,3.728]
[1720524531824,0.04824599,3093.8,3092.8,3.728]
[1720524532010,0.33857738,3093.9,3092.8,3.728]
[1720524532434,0.55,3093.8,3092.8,3.728]
[1720524532656,0.55,3093.8,3092.9,0.06465318]
[1720524532958,0.55,3093.8,3093.3,3.728]
[1720524533318,0.33857738,3093.9,3093.4,0.06465024]
[1720524533860,0.33857738,3093.9,3093.8,3.728]
[1720524542624,0.33857738,3093.9,3093.8,2.796]
[1720524545589,0.33857738,3093.9,3093.8,6.02827]
[1720524546230,0.33857738,3093.9,3093.8,6.0929045]
[1720524546430,2.4257,3095.1,3094.0,3.23202]
[1720524546649,10.36,3095.4,3094.6,2.796]
[1720524546872,1.036,3095.3,3095.0,2.796]
[1720524547171,2.3653909,3096.0,3095.0,2.796]
[1720524547374,1.11944132,3095.9,3095.0,2.796]
[1720524548333,4.11944132,3095.9,3095.0,2.796]
[1720524548529,2.06792454,3095.8,3095.0,2.796]
[1720524548735,1.11944132,3095.7,3095.0,2.796]
[1720524549072,0.55,3095.6,3095.0,2.796]
[1720524549234,1.11944132,3095.5,3095.0,2.796]
[1720524549430,0.55,3095.4,3095.0,2.796]
[1720524549633,1.11944132,3095.3,3095.0,2.796]
[1720524550153,0.88851492,3095.4,3095.0,2.796]
[1720524550362,1.11943749,3095.3,3095.0,2.796]
[1720524550588,0.88851492,3095.4,3095.0,2.796]
[1720524550786,1.11944095,3095.3,3095.0,2.796]
[1720524551087,0.20079559,3095.3,3095.0,2.796]
[1720524551241,0.88851492,3095.4,3095.0,2.796]
[1720524552999,0.33851492,3095.4,3095.1,0.06461798]
[1720524553139,0.1146909,3096.0,3095.3,3.23069]
[1720524553347,0.1146909,3096.0,3095.2,2.4537]
[1720524553656,0.1146909,3096.0,3095.2,3.0]
[1720524553857,1.16755058,3095.9,3094.3,0.40062165]
[1720524554192,1.11930459,3095.8,3094.8,2.796]
[1720524554357,1.11930459,3095.9,3095.2,2.796]
[1720524554542,1.66935064,3095.8,3095.2,2.796]
[1720524554738,0.55,3095.8,3095.2,2.796]
[1720524554969,0.55,3095.9,3095.2,2.796]
[1720524555537,1.11935505,3095.8,3095.2,2.796]
[1720524555768,0.59824599,3095.9,3095.2,2.796]
[1720524555769,1.84111515,3095.7,3095.2,2.796]
[1720524556077,0.55,3095.6,3095.2,2.796]
[1720524556282,0.04824599,3095.5,3095.2,2.796]
[1720524556441,0.1146909,3096.0,3094.8,2.796]
[1720524556442,0.55,3095.4,3094.8,2.796]
[1720524556649,0.04824599,3095.3,3094.8,2.796]
[1720524556851,0.55,3095.2,3094.8,2.796]
[1720524558549,2.3979,3095.8,3094.8,2.796]
[1720524558774,2.3979,3095.8,3095.2,2.796]
[1720524558775,1.11951672,3095.7,3095.2,2.796]
[1720524558961,1.66951672,3095.6,3095.2,2.796]
[1720524559157,0.55,3095.6,3095.2,2.796]
[1720524559488,0.55,3095.7,3095.2,2.796]
[1720524559643,1.41419724,3095.6,3095.2,2.796]
[1720524559849,0.55,3095.7,3095.2,2.796]
[1720524560047,0.55,3095.8,3095.2,2.796]
[1720524560657,0.1146909,3096.0,3095.2,2.796]
[1720524560862,1.119341,3095.9,3095.2,2.796]
[1720524561062,0.1146909,3096.0,3095.2,5.078]
[1720524561284,1.1193131,3095.9,3095.2,2.282]
[1720524561593,0.1146909,3096.0,3095.7,2.796]
[1720524565303,0.1146909,3096.0,3095.8,2.32809832]
[1720524565514,7.36,3097.2,3096.0,3.2299]
[1720524565673,1.11894946,3097.1,3096.4,2.796]
[1720524565874,1.11894946,3097.0,3096.4,2.796]
[1720524566071,2.669,3097.6,3096.4,2.796]
[1720524566272,2.79569021,3097.5,3096.9,2.796]
[1720524566514,1.11885251,3097.4,3096.9,2.796]
[1720524566686,1.11885251,3097.3,3096.9,2.796]
[1720524567008,1.11885251,3097.7,3096.9,2.796]
[1720524567212,1.1188038,3097.6,3096.9,2.796]
[1720524567411,1.1188038,3097.5,3096.9,2.796]
[1720524567599,1.11880226,3097.4,3096.9,2.796]
[1720524567774,0.04824599,3097.7,3096.9,2.796]
[1720524568120,7.36,3098.2,3097.3,2.796]
[1720524568121,1.11880279,3097.6,3097.3,2.796]
[1720524568317,9.8012,3098.5,3097.3,2.796]
[1720524568472,2.14695931,3098.4,3097.3,2.796]
[1720524568677,1.11859332,3098.3,3097.3,2.796]
[1720524568905,2.4412,3098.5,3096.7,2.475]
[1720524568906,1.16683931,3098.2,3096.9,2.796]
[1720524569212,1.11859332,3098.1,3096.9,2.796]
[1720524569371,0.04824599,3098.0,3096.9,2.796]
[1720524569573,0.04824599,3097.9,3096.9,2.796]
[1720524569816,1.11874316,3097.8,3096.9,2.796]
[1720524570022,0.04824599,3097.7,3096.9,2.796]
[1720524571117,2.3389,3097.5,3096.5,2.796]
[1720524571275,1.11880229,3097.4,3096.5,2.796]
[1720524571475,0.55,3097.3,3096.5,2.796]
[1720524571674,0.16688023,3097.2,3096.5,2.796]
[1720524571985,0.55,3097.1,3096.5,2.796]
[1720524572398,0.55,3097.4,3096.5,2.796]
[1720524572598,1.11888687,3097.3,3096.5,2.796]
[1720524572771,0.55,3097.2,3096.5,2.796]
[1720524572973,0.55,3097.4,3096.5,2.796]
[1720524573186,7.36,3097.8,3096.8,2.796]
[1720524573187,1.11884762,3097.3,3096.8,2.796]
[1720524573411,0.55,3097.7,3096.8,2.796]
[1720524573606,1.1188102,3097.6,3096.8,2.796]
[1720524573817,1.83569122,3097.5,3096.8,2.796]
[1720524574026,0.55,3097.4,3096.8,2.796]
[1720524574228,0.55,3097.7,3096.8,2.796]
[1720524574460,1.11880741,3097.6,3096.8,2.796]
[1720524574741,1.66880741,3097.5,3096.8,2.796]
[1720524574887,0.55,3097.7,3096.8,2.796]
[1720524574888,0.791,3097.6,3096.8,2.796]
[1720524575088,1.66881101,3097.5,3096.8,2.796]
[1720524575444,0.55,3097.5,3096.8,2.796]
[1720524575736,0.55,3097.5,3097.2,2.796]
[1720524577004,0.04824599,3097.4,3096.8,2.796]
[1720524577190,0.04824599,3097.4,3096.4,3.0]
[1720524577191,1.6688903,3097.3,3096.4,2.796]
[1720524577396,1.56518992,3097.2,3096.4,2.796]
[1720524577714,1.6688903,3097.1,3096.4,2.796]
[1720524577904,0.55,3097.1,3096.4,2.796]
[1720524578430,0.04824599,3097.0,3096.4,2.796]
[1720524578815,0.55,3096.9,3096.4,2.796]
[1720524579139,0.04824599,3096.8,3096.4,2.796]
[1720524579427,0.55,3096.7,3096.4,2.796]
[1720524579794,0.55,3097.0,3096.4,2.796]
[1720524579993,1.11897742,3096.9,3096.4,2.796]
[1720524580229,0.71689774,3096.8,3096.4,2.796]
[1720524580527,0.55,3096.7,3096.4,2.796]
[1720524580724,0.55,3096.7,3096.0,3.0]
[1720524584442,0.55,3097.0,3096.0,3.0]
[1720524584725,1.16728319,3096.9,3096.0,3.0]
[1720524585033,1.84076552,3096.8,3096.0,3.0]
[1720524585189,1.1190372,3096.7,3096.0,3.0]
[1720524585533,0.55,3096.8,3096.0,3.0]
[1720524585833,1.11902616,3096.7,3096.0,3.0]
[1720524586003,0.55,3096.8,3096.0,3.0]
[1720524586204,1.11901494,3096.7,3096.0,3.0]
[1720524586535,0.55,3096.8,3096.0,3.0]
[1720524586723,1.11901608,3096.7,3096.0,3.0]
[1720524586898,0.55,3096.8,3096.0,3.0]
[1720524587100,1.11902608,3096.7,3096.0,3.0]
[1720524587327,1.11902608,3096.6,3096.0,3.0]
[1720524587528,0.20073691,3096.7,3096.0,3.0]
[1720524587728,1.11902473,3096.6,3096.0,3.0]
[1720524587900,0.55,3096.5,3096.0,3.0]
[1720524588109,1.66903627,3096.8,3096.0,3.0]
[1720524588310,1.11903627,3096.7,3096.0,3.0]
[1720524588508,1.66903627,3096.6,3096.0,3.0]
[1720524588709,1.11903627,3096.5,3096.0,3.0]
[1720524588909,0.55,3096.6,3096.0,3.0]
[1720524589248,1.11902808,3096.5,3096.0,3.0]
[1720524589540,1.11902808,3096.4,3096.0,3.0]
[1720524589745,0.55,3096.7,3096.0,3.0]
[1720524589952,0.33834306,3096.9,3096.0,3.0]
[1720524589953,1.11902844,3096.6,3096.0,3.0]
[1720524590248,0.55,3096.8,3096.0,3.0]
[1720524590249,1.66902536,3096.5,3096.0,3.0]
[1720524590552,0.55,3096.8,3096.0,3.0]
[1720524590762,1.11902837,3096.7,3096.0,3.0]
[1720524590915,1.66902837,3096.6,3096.0,3.0]
[1720524591234,1.11902837,3096.5,3096.0,3.0]
[1720524591434,1.11902837,3096.4,3096.0,3.0]
[1720524591641,1.11902837,3096.5,3096.0,3.0]
[1720524592354,1.28593121,3096.5,3096.0,3.0]
[1720524592523,1.11902837,3096.4,3095.9,3.722]
[1720524592720,1.16727436,3096.4,3095.9,3.722]
[1720524592925,1.66902837,3096.3,3095.9,3.722]
[1720524593173,1.29089849,3096.2,3095.9,3.722]
[1720524593630,1.11917105,3096.1,3095.9,3.722]
[1720524594148,1.11917105,3096.0,3095.9,3.722]
[1720524595855,1.11917105,3096.0,3095.4,2.3364]
[1720524595856,1.11917105,3096.0,3095.4,3.722]
[1720524596016,2.343,3096.2,3095.5,3.0]
[1720524596017,1.11917105,3095.9,3095.5,3.0]
[1720524596354,1.40847105,3096.1,3095.5,3.0]
[1720524596554,1.11925966,3095.8,3095.5,3.0]
[1720524596753,1.11925966,3095.7,3095.5,3.0]
[1720524597054,0.55,3096.0,3095.5,3.0]
[1720524597349,1.1192646,3095.9,3095.5,3.0]
[1720524597553,1.6692646,3095.8,3095.4,3.722]
[1720524597720,1.1192646,3095.7,3095.4,3.722]
[1720524599923,1.11928774,3095.6,3095.4,3.722]
[1720524600124,1.11928774,3095.5,3095.4,3.722]
[1720524600322,1.11928774,3095.7,3095.4,3.722]
[1720524600552,1.45767598,3095.7,3094.9,5.6469]
[1720524600857,0.33838824,3095.7,3095.6,2.793]
[1720524601063,1.45767853,3095.7,3095.6,2.793]
[1720524601350,0.33838824,3095.7,3095.6,2.793]
[1720524603119,1.45762018,3095.7,3095.6,2.793]
[1720524603418,1.4576454,3095.7,3095.6,2.793]
[1720524603621,1.4576454,3095.7,3094.5,6.4629]
[1720524603622,3.4179224,3095.7,3094.5,2.46]
[1720524603865,3.46957239,3095.6,3094.7,2.793]
[1720524604080,4.09252038,3095.5,3094.7,2.793]
[1720524604223,3.12778015,3095.4,3094.7,2.793]
[1720524604422,6.35306515,3095.3,3093.9,3.23209]
[1720524604661,2.52953416,3095.2,3094.5,2.793]
[1720524604817,3.06352758,3095.1,3094.5,2.793]
[1720524605168,3.07953416,3095.0,3094.5,2.793]
[1720524605357,2.52953416,3094.9,3094.5,2.793]
[1720524605524,1.11963551,3094.8,3094.5,2.793]
[1720524605862,1.11963551,3094.7,3094.5,2.793]
[1720524606074,1.11962497,3094.9,3094.5,2.793]
[1720524606361,1.11962583,3094.8,3094.5,2.793]
[1720524606578,0.33838824,3095.7,3094.5,2.793]
[1720524606723,1.669576,3095.6,3094.9,2.793]
[1720524606944,2.53024176,3095.5,3094.9,2.793]
[1720524607284,1.119576,3095.4,3095.3,2.793]
[1720524607485,9.7147,3096.2,3095.3,2.793]
[1720524607688,3.50112652,3096.1,3095.7,2.793]
[1720524607852,2.52965652,3096.0,3095.3,2.793]
[1720524608049,2.87976917,3095.9,3095.3,2.793]
[1720524608269,2.52965652,3095.8,3095.3,2.793]
[1720524608472,2.52965652,3095.7,3095.3,2.793]
[1720524608788,0.33842699,3095.9,3094.8,2.3587]
[1720524608789,2.5300036,3095.6,3094.9,2.793]
[1720524608999,3.0800036,3095.5,3094.9,2.793]
[1720524609298,2.52998101,3095.4,3094.9,2.793]
[1720524609583,0.33842699,3095.9,3095.3,2.793]
[1720524609788,2.52985979,3095.8,3095.3,2.793]
[1720524610086,2.52985979,3095.7,3095.3,2.793]
[1720524610293,2.52985979,3095.6,3095.3,2.793]
[1720524610585,2.52985979,3095.5,3095.3,2.793]
[1720524610784,1.11940699,3095.4,3095.3,2.793]
[1720524611376,1.11940699,3095.6,3095.3,2.793]
[1720524611993,0.28682868,3095.7,3095.3,2.793]
[1720524611994,1.11942408,3095.5,3095.3,2.793]
[1720524612284,0.33842699,3095.9,3095.3,2.793]
[1720524612485,2.52990004,3095.8,3095.7,2.793]
[1720524612686,2.5297736,3095.8,3095.7,2.793]
[1720524612885,1.1192149,3095.8,3095.7,2.793]
[1720524613055,2.4972,3096.7,3095.7,2.793]
[1720524613254,2.52944249,3096.2,3095.7,2.793]
[1720524613455,2.52944249,3096.1,3095.7,2.793]
[1720524613687,1.1192208,3096.0,3095.7,2.793]
[1720524613893,0.005,3095.9,3095.7,2.793]
[1720524614075,1.11923987,3095.8,3095.7,2.793]
[1720524614385,0.005,3095.9,3095.7,2.793]
[1720524615493,1.11920986,3095.8,3095.7,2.793]
[1720524616308,1.11920986,3095.8,3095.3,2.793]
[1720524616629,1.11920986,3095.7,3095.3,2.793]
[1720524616909,1.11920986,3095.7,3094.6,0.16176962]
[1720524616910,1.96044413,3095.6,3094.9,2.793]
[1720524617065,1.60648854,3095.5,3094.9,2.793]
[1720524617262,2.52965399,3095.4,3094.9,2.793]
[1720524617465,3.07965399,3095.3,3094.5,2.793]
[1720524617714,2.52965399,3095.2,3094.5,2.793]
[1720524617865,3.07965399,3095.1,3094.5,2.793]
[1720524618217,1.66920986,3095.0,3094.5,2.793]
[1720524618388,1.11920986,3095.0,3094.5,2.793]
[1720524618610,0.55,3095.3,3094.5,2.793]
[1720524618611,1.11955239,3094.9,3094.5,2.793]
[1720524618759,0.55,3095.3,3094.5,2.793]
[1720524618760,1.11955239,3094.8,3094.5,2.793]
[1720524618963,1.11955239,3095.2,3094.5,2.793]
[1720524619159,1.96075004,3095.1,3094.5,2.793]
[1720524619409,2.53030243,3095.0,3094.5,2.793]
[1720524619603,1.11955239,3094.9,3094.5,2.793]
[1720524619775,1.11955239,3095.0,3094.5,2.793]
[1720524619975,0.55,3094.9,3094.5,2.793]